bitfinex/quotes_ETHUSD_20250604
["timestamp","ask_amount","ask_price","bid_price","bid_amount"]
[1749022766721,0.2,2624.8,2624.7,40.978]
[1749022770972,1.4515,2624.8,2624.7,40.978]
[1749022771171,2.0015,2624.8,2624.7,34.805]
[1749022771373,5.45131528,2624.8,2624.7,40.978]
[1749022771691,5.45131528,2624.8,2624.7,15.978]
[1749022772767,3.99766528,2624.8,2624.7,15.978]
[1749022776705,3.99766528,2624.8,2624.7,1.588]
[1749022778105,3.99766528,2624.8,2624.7,7.76]
[1749022779371,3.44766528,2624.8,2624.7,7.76]
[1749022779703,3.44766528,2624.8,2624.7,17.76]
[1749022779900,3.24766528,2624.8,2624.7,17.76]
[1749022782107,3.44766528,2624.8,2624.7,17.76]
[1749022782307,3.24766528,2624.8,2624.7,17.76]
[1749022782604,3.44766528,2624.8,2624.7,7.76]
[1749022784188,3.91651181,2624.8,2624.7,7.76]
[1749022785531,0.2,2624.5,2624.4,8.219]
[1749022785888,0.2,2624.5,2624.4,15.979]
[1749022785889,0.75,2624.5,2624.4,15.979]
[1749022791005,0.75,2624.5,2624.4,9.807]
[1749022791424,0.75,2624.5,2624.4,24.78581818]
[1749022794043,0.75,2624.5,2624.4,18.61381818]
[1749022794218,0.95362,2624.5,2624.4,24.78581818]
[1749022800350,0.95362,2624.5,2624.4,18.61381818]
[1749022800738,2.65362,2624.5,2624.4,24.78681818]
[1749022802018,2.65362,2624.5,2624.4,16.56781818]
[1749022805252,5.90128528,2624.5,2624.4,16.56781818]
[1749022809304,5.69766528,2624.5,2624.4,16.56781818]
[1749022810379,5.14766528,2624.5,2624.4,16.56781818]
[1749022810704,1.7,2624.5,2624.4,29.37156064]
[1749022810906,0.2,2624.8,2624.5,10.0]
[1749022811110,0.2,2624.8,2624.7,12.80374246]
[1749022811605,0.02,2624.9,2624.7,12.80374246]
[1749022811791,0.2,2624.8,2624.7,12.80374246]
[1749022812105,0.2,2624.8,2624.7,18.97674246]
[1749022813181,0.2,2624.8,2624.7,16.173]
[1749022813412,0.2,2624.8,2624.7,11.250629]
[1749022814319,0.2,2624.8,2624.7,6.173]
[1749022814488,0.2,2624.8,2624.7,9.258419]
[1749022818024,0.2,2624.8,2624.7,10.0]
[1749022818218,0.2,2624.8,2624.5,2.80374246]
[1749022818219,0.2,2624.8,2624.6,10.0]
[1749022818420,0.2,2624.8,2624.7,10.0]
[1749022818922,0.2,2624.8,2624.7,3.298044]
[1749022819129,0.2,2624.8,2624.7,8.425558]
[1749022820236,3.44766528,2624.8,2624.7,16.644558]
[1749022820604,3.44766528,2624.8,2624.7,10.473558]
[1749022820931,3.44766528,2624.8,2624.7,16.644558]
[1749022825157,3.44766528,2624.8,2624.7,16.516331]
[1749022826059,3.44766528,2624.8,2624.7,8.219]
[1749022826253,3.79443181,2624.8,2624.7,15.978]
[1749022826640,3.44766528,2624.8,2624.7,15.978]
[1749022828118,3.44766528,2624.8,2624.7,28.78174246]
[1749022829160,3.44766528,2624.8,2624.7,25.978]
[1749022831936,0.2,2624.8,2624.7,25.978]
[1749022837874,3.44766528,2624.8,2624.7,25.978]
[1749022843968,3.44766528,2624.8,2624.7,23.502149]
[1749022849494,3.44766528,2624.8,2624.7,8.219]
[1749022849654,4.97153181,2624.8,2624.7,9.806]
[1749022849846,4.97153181,2624.8,2624.7,15.976]
[1749022849847,5.52153181,2624.8,2624.7,15.976]
[1749022853607,5.52153181,2624.8,2624.7,9.806]
[1749022853820,5.52153181,2624.8,2624.7,15.976]
[1749022855553,5.52153181,2624.8,2624.7,9.806]
[1749022855893,5.52153181,2624.8,2624.7,15.976]
[1749022856991,5.52153181,2624.8,2624.7,9.806]
[1749022864248,4.97153181,2624.8,2624.7,9.806]
[1749022864630,11.21766528,2624.8,2624.7,9.806]
[1749022865517,11.76766528,2624.8,2624.7,9.806]
[1749022867949,11.21766528,2624.8,2624.7,9.806]
[1749022868323,11.76766528,2624.8,2624.7,9.806]
[1749022873347,3.44766528,2624.8,2624.7,9.806]
[1749022882975,3.44766528,2624.8,2624.7,15.975]
[1749022886270,3.44766528,2624.8,2624.7,25.975]
[1749022886470,3.44766528,2624.8,2624.7,25.128397]
[1749022895624,3.44766528,2624.8,2624.7,24.563089]
[1749022896603,3.44766528,2624.8,2624.7,15.975]
[1749022897227,3.44766528,2624.8,2624.7,18.889084]
[1749022897619,3.44766528,2624.8,2624.7,15.975]
[1749022898203,3.44766528,2624.8,2624.7,9.804]
[1749022898406,5.54393181,2624.8,2624.7,9.804]
[1749022899502,5.54393181,2624.8,2624.7,15.972]
[1749022900719,5.54393181,2624.8,2624.7,9.804]
[1749022900923,5.54393181,2624.8,2624.7,15.972]
[1749022901487,5.54393181,2624.8,2624.7,9.804]
[1749022901687,5.54393181,2624.8,2624.7,15.972]
[1749022907192,5.54393181,2624.8,2624.7,9.804]
[1749022907401,5.54393181,2624.8,2624.4,1.716149]
[1749022907402,1.3678,2624.5,2624.4,1.716149]
[1749022907620,4.80724528,2624.5,2624.4,9.470149]
[1749022908303,4.80724528,2624.5,2624.4,3.302149]
[1749022908624,4.80724528,2624.5,2624.4,9.470149]
[1749022909251,8.16098774,2624.5,2624.4,1.716149]
[1749022915046,8.16098774,2624.5,2624.0,6.168]
[1749022915047,0.55,2624.1,2624.0,6.168]
[1749022915241,0.75,2624.1,2624.0,7.754]
[1749022915444,1.9296,2624.1,2624.0,7.755]
[1749022920587,3.80722791,2624.1,2623.9,8.219]
[1749022920743,1.3461,2623.6,2623.5,0.59497094]
[1749022920941,6.23135874,2623.6,2623.5,2.18097094]
[1749022921157,6.85449461,2623.6,2623.5,2.18097094]
[1749022921682,4.05075215,2623.6,2623.5,2.18097094]
[1749022921842,2.28151628,2623.6,2623.5,8.34997094]
[1749022926499,6.22175874,2623.6,2623.5,2.18097094]
[1749022926972,6.22175874,2623.6,2623.5,0.59497094]
[1749022927188,6.72175874,2623.6,2623.5,2.18097094]
[1749022931460,3.91801628,2623.6,2623.5,2.18097094]
[1749022931665,4.59019215,2623.6,2623.5,2.18097094]
[1749022932591,7.39393461,2623.6,2623.5,2.18097094]
[1749022935168,1.68654534,2623.0,2622.9,14.391]
[1749022935371,1.68654534,2623.0,2622.9,15.977]
[1749022935686,1.68654534,2623.0,2622.9,9.807]
[1749022935861,2.24729412,2623.0,2622.9,9.807]
[1749022937899,1.68654534,2623.0,2622.9,9.807]
[1749022942469,1.13654534,2623.0,2622.9,9.807]
[1749022942980,1.13654534,2623.0,2622.9,8.221]
[1749022943171,1.68654534,2623.0,2622.9,15.978]
[1749022944521,2.18654534,2623.0,2622.9,15.978]
[1749022944885,1.63654534,2623.0,2622.9,15.978]
[1749022945286,1.63654534,2623.0,2622.9,1.586]
[1749022946010,2.18654534,2623.0,2622.9,1.586]
[1749022946396,2.18654534,2623.0,2622.9,7.757]
[1749022949341,3.55309987,2623.0,2622.9,1.586]
[1749022950719,2.40519987,2623.0,2622.9,1.586]
[1749022951010,2.18654534,2623.0,2622.9,1.586]
[1749022955461,1.68654534,2623.0,2622.9,1.586]
[1749022959460,2.83224534,2623.0,2622.9,1.586]
[1749022960563,1.68654534,2623.0,2622.9,1.586]
[1749022961462,2.86264534,2623.0,2622.9,1.586]
[1749022961668,3.42928412,2623.0,2622.9,1.586]
[1749022962182,0.75,2622.8,2622.7,6.171]
[1749022962363,0.75,2622.8,2622.7,7.757]
[1749022962981,0.75,2622.8,2622.7,1.586]
[1749022968046,1.68654534,2622.8,2622.7,1.586]
[1749022971788,2.18654534,2622.8,2622.7,1.586]
[1749022972918,1.68654534,2622.8,2622.7,1.586]
[1749022975217,1.68654534,2622.8,2622.2,2.80374246]
[1749022975421,1.68654534,2622.8,2622.7,1.586]
[1749022976215,1.68654534,2622.8,2622.2,2.80374246]
[1749022976415,1.68654534,2622.8,2622.3,7.757]
[1749022976608,0.2,2622.4,2622.3,17.757]
[1749022979724,0.2,2622.4,2622.3,8.170404]
[1749022979907,0.2,2622.4,2622.3,1.586]
[1749022980424,0.2,2622.4,2622.3,7.756]
[1749022980647,0.2,2622.4,2622.3,7.755]
[1749022982242,0.2,2622.4,2622.3,1.585]
[1749022982405,0.2,2622.4,2622.3,7.755]
[1749022983052,0.55,2622.3,2622.1,8.22941508]
[1749022983207,0.75,2622.2,2622.1,14.39941508]
[1749022983411,0.75,2622.2,2622.1,15.98441508]
[1749022984238,0.2,2622.2,2622.1,15.98441508]
[1749022985528,0.2,2622.2,2622.1,9.81441508]
[1749022985715,0.2,2622.2,2622.1,15.98441508]
[1749022988719,1.13654534,2622.2,2622.1,15.98441508]
[1749022989152,1.13654534,2622.2,2622.1,9.81441508]
[1749022989353,1.68654534,2622.2,2622.1,9.81441508]
[1749022989562,1.96433987,2622.2,2622.1,9.81441508]
[1749022989969,1.96433987,2622.2,2622.1,15.98541508]
[1749022991460,1.68654534,2622.2,2622.1,15.98541508]
[1749022991964,2.18654534,2622.2,2622.1,15.98541508]
[1749022992167,1.63654534,2622.2,2622.1,18.78915754]
[1749022992350,1.13654534,2622.2,2622.1,18.78915754]
[1749022993869,1.13654534,2622.2,2622.1,15.98541508]
[1749022996364,1.13654534,2622.2,2622.1,8.22941508]
[1749022996565,1.13654534,2622.2,2622.1,15.98641508]
[1749023006517,0.93654534,2622.2,2622.1,15.98641508]
[1749023006674,0.93654534,2622.2,2622.1,25.98641508]
[1749023011346,1.13654534,2622.2,2622.1,25.98641508]
[1749023011721,1.13654534,2622.2,2622.1,20.84190508]
[1749023011919,1.13654534,2622.2,2622.1,20.45590508]
[1749023013025,0.93654534,2622.2,2622.1,28.45590508]
[1749023013640,0.93654534,2622.2,2622.1,21.22162508]
[1749023013841,0.93654534,2622.2,2622.1,31.06931308]
[1749023014310,0.93654534,2622.2,2622.1,23.39558308]
[1749023014507,0.93654534,2622.2,2622.1,29.56558308]
[1749023018133,0.93654534,2622.2,2622.1,21.80958308]
[1749023018349,0.93654534,2622.2,2622.1,29.56358308]
[1749023027855,0.93654534,2622.2,2622.1,23.39458308]
[1749023028066,0.93654534,2622.2,2622.1,29.56358308]
[1749023028567,0.93654534,2622.2,2622.1,19.88602651]
[1749023036893,0.93654534,2622.2,2622.1,19.88502651]
[1749023037698,0.93654534,2622.2,2622.1,12.13202651]
[1749023037845,0.93654534,2622.2,2622.1,19.88502651]
[1749023038987,0.93654534,2622.2,2622.1,12.13202651]
[1749023039194,0.93654534,2622.2,2622.1,19.88502651]
[1749023040480,2.01044534,2622.2,2622.1,9.81]
[1749023040675,2.23148987,2622.2,2622.1,9.81]
[1749023040917,2.43148987,2622.2,2622.1,15.978]
[1749023041290,1.35758987,2622.2,2622.1,15.978]
[1749023041492,3.06298987,2622.2,2622.1,15.978]
[1749023051013,2.29194534,2622.2,2622.1,15.978]
[1749023051351,1.13654534,2622.2,2622.1,15.978]
[1749023052529,2.21234534,2622.2,2622.1,15.978]
[1749023052851,2.21234534,2622.2,2622.1,8.226]
[1749023053055,2.21234534,2622.2,2622.1,15.978]
[1749023056030,1.13654534,2622.2,2622.1,15.978]
[1749023056856,0.93654534,2622.2,2622.1,25.978]
[1749023057067,1.13654534,2622.2,2622.1,25.978]
[1749023057668,0.93654534,2622.2,2622.1,33.978]
[1749023062851,0.93654534,2622.2,2622.1,18.0]
[1749023063681,0.93654534,2622.2,2622.1,11.416942]
[1749023064383,0.93654534,2622.2,2622.1,14.22068446]
[1749023074444,4.79054534,2622.2,2622.1,14.22068446]
[1749023074646,0.93654534,2622.2,2622.1,14.22068446]
[1749023074870,5.77954534,2622.2,2622.1,14.22068446]
[1749023078973,0.989,2622.2,2622.1,14.22068446]
[1749023079180,0.989,2622.3,2622.2,18.0]
[1749023079362,4.072,2622.3,2622.2,18.0]
[1749023079569,6.046,2622.3,2622.2,18.0]
[1749023082478,2.765,2622.3,2622.2,18.0]
[1749023082679,5.848,2622.3,2622.2,18.0]
[1749023084873,2.765,2622.3,2622.2,18.0]
[1749023085085,5.848,2622.3,2622.2,18.0]
[1749023086860,10.508,2622.3,2622.2,18.0]
[1749023099688,7.425,2622.3,2622.2,18.0]
[1749023099897,10.507,2622.3,2622.2,18.0]
[1749023103935,7.425,2622.3,2622.2,18.0]
[1749023104230,10.507,2622.3,2622.2,18.0]
[1749023104593,7.425,2622.3,2622.2,18.0]
[1749023104793,10.507,2622.3,2622.2,18.0]
[1749023109109,6.634,2622.3,2622.2,20.80374246]
[1749023109431,6.634,2622.3,2622.2,21.87719456]
[1749023109432,2.02666655,2622.3,2622.2,21.87719456]
[1749023109631,2.02666655,2622.3,2622.2,24.68093702]
[1749023109857,5.10866655,2622.3,2622.2,24.68093702]
[1749023110595,5.10866655,2622.3,2621.4,7.65359721]
[1749023110596,5.10866655,2622.3,2621.0,7.10764945]
[1749023110796,5.10866655,2622.3,2621.4,10.0]
[1749023111104,5.10866655,2622.3,2622.2,12.80374246]
[1749023112608,5.10866655,2622.3,2622.2,23.60748492]
[1749023112808,5.10866655,2622.3,2622.2,20.80374246]
[1749023113404,5.10866655,2622.3,2622.2,23.60748492]
[1749023114210,1.23566655,2622.3,2622.2,23.60748492]
[1749023114444,5.10766655,2622.3,2622.2,23.60748492]
[1749023114946,5.10766655,2622.3,2622.2,20.80374246]
[1749023115632,2.02666655,2622.3,2622.2,20.80374246]
[1749023115840,5.10766655,2622.3,2622.2,20.80374246]
[1749023121257,6.12266655,2622.3,2622.2,20.80374246]
[1749023121556,6.12266655,2622.3,2622.2,14.374152]
[1749023122260,6.12266655,2622.3,2621.8,2.80374246]
[1749023122564,6.12266655,2622.3,2621.9,10.0]
[1749023123933,1.0848,2622.2,2621.9,10.0]
[1749023124134,3.081,2622.1,2621.9,10.0]
[1749023124477,3.081,2622.1,2622.0,18.0]
[1749023125179,3.081,2622.1,2621.3,2.80374246]
[1749023125180,3.081,2622.1,2621.7,2.80374246]
[1749023125351,3.081,2622.1,2622.0,8.0]
[1749023125553,3.081,2622.1,2622.0,18.0]
[1749023125882,4.1379,2622.1,2622.0,18.0]
[1749023133645,1.8479,2622.1,2622.0,18.0]
[1749023133843,4.9299,2622.1,2622.0,18.0]
[1749023134598,4.9299,2622.1,2622.0,12.35789]
[1749023135096,0.2,2622.0,2621.9,28.0]
[1749023135504,0.2,2622.0,2621.9,17.021125]
[1749023138385,4.861,2622.0,2621.9,17.021125]
[1749023139210,5.452,2622.0,2621.9,17.021125]
[1749023139542,8.534,2622.0,2621.9,17.021125]
[1749023140370,5.452,2622.0,2621.9,17.021125]
[1749023140551,8.534,2622.0,2621.9,17.021125]
[1749023145897,5.452,2622.0,2621.9,17.021125]
[1749023146196,8.534,2622.0,2621.9,17.021125]
[1749023146960,4.661,2622.0,2621.9,17.021125]
[1749023147156,5.452,2622.0,2621.9,17.021125]
[1749023147418,4.661,2622.3,2622.2,8.0]
[1749023147568,4.661,2622.3,2622.2,23.60748492]
[1749023147569,5.452,2622.3,2622.2,23.60748492]
[1749023147776,4.988258,2622.3,2622.2,24.59148268]
[1749023148166,1.115258,2622.3,2622.2,24.59148268]
[1749023148504,4.988258,2622.3,2622.2,24.59148268]
[1749023148736,4.988258,2622.3,2622.2,24.1224036]
[1749023149074,1.906258,2622.3,2622.2,24.1224036]
[1749023149306,4.987258,2622.3,2622.2,24.1224036]
[1749023150222,3.406258,2622.3,2622.2,24.1224036]
[1749023150430,4.661,2622.8,2622.4,8.0]
[1749023150580,3.871,2622.7,2622.6,18.0]
[1749023150783,0.79,2622.7,2622.6,20.80374246]
[1749023151024,3.871,2622.7,2622.6,20.80374246]
[1749023151247,0.79,2622.7,2622.6,20.80374246]
[1749023151449,3.871,2622.7,2622.6,20.80374246]
[1749023163708,4.9889,2622.7,2622.6,15.661376]
[1749023163923,4.9889,2622.7,2622.6,18.46511846]
[1749023164121,3.871,2622.7,2622.6,18.46511846]
[1749023164644,4.661,2622.8,2622.7,18.0]
[1749023164837,8.531,2622.8,2622.7,17.403789]
[1749023164997,8.531,2622.8,2622.7,16.536443]
[1749023165720,10.7149,2622.8,2622.7,10.7885]
[1749023165924,9.8398,2622.8,2622.7,10.7885]
[1749023168514,9.8408,2622.8,2622.7,10.7885]
[1749023171433,6.7598,2622.8,2622.7,10.7885]
[1749023171630,8.532,2622.8,2622.7,10.7885]
[1749023171957,8.732,2622.8,2622.7,10.7885]
[1749023172321,8.532,2622.8,2622.7,10.7885]
[1749023172934,8.732,2622.8,2622.7,10.7885]
[1749023173865,9.8465,2622.8,2622.7,10.7885]
[1749023178395,9.6465,2622.8,2622.7,10.7885]
[1749023178685,9.8465,2622.8,2622.7,10.7885]
[1749023183444,6.7655,2622.8,2622.7,10.7885]
[1749023183640,9.8465,2622.8,2622.7,10.7885]
[1749023184479,6.7655,2622.8,2622.7,10.7885]
[1749023184680,9.8465,2622.8,2622.7,10.7885]
[1749023185089,8.732,2622.8,2622.7,10.7885]
[1749023185296,5.651,2622.8,2622.7,10.7885]
[1749023185475,8.732,2622.8,2622.7,10.7885]
[1749023185678,5.651,2622.8,2622.7,10.7885]
[1749023185879,8.732,2622.8,2622.7,10.7885]
[1749023186988,8.732,2622.8,2622.7,13.59224246]
[1749023187400,5.651,2622.8,2622.7,13.59224246]
[1749023187700,8.731,2622.8,2622.7,13.59224246]
[1749023188363,9.7724,2622.8,2622.7,10.7885]
[1749023188696,9.7724,2622.8,2622.7,10.363868]
[1749023192913,10.70894534,2622.8,2622.7,10.363868]
[1749023193310,10.70994534,2622.8,2622.7,10.363868]
[1749023197523,11.63281003,2622.8,2622.7,8.0]
[1749023197739,10.59141003,2622.8,2622.2,2.80374246]
[1749023197903,1.1503,2622.4,2622.1,10.0]
[1749023198104,3.281,2622.3,2622.2,18.0]
[1749023198911,3.281,2622.3,2622.2,20.80374246]
[1749023199866,3.081,2622.3,2622.2,20.80374246]
[1749023200000,3.281,2622.3,2622.2,20.80374246]
[1749023200997,4.071,2622.3,2622.2,20.80374246]
[1749023204944,3.871,2622.3,2622.2,20.80374246]
[1749023205821,8.531,2622.3,2622.2,20.80374246]
[1749023209011,4.66,2622.3,2622.2,20.80374246]
[1749023209227,8.531,2622.3,2622.2,20.80374246]
[1749023216937,5.45,2622.3,2622.2,20.80374246]
[1749023217138,8.531,2622.3,2622.2,20.80374246]
[1749023220286,4.86,2622.6,2622.2,20.80374246]
[1749023220501,0.79,2622.3,2622.2,18.0]
[1749023220655,4.071,2622.3,2622.2,18.0]
[1749023221585,4.071,2622.3,2622.2,20.80374246]
[1749023225198,0.99,2622.3,2622.2,20.80374246]
[1749023225406,4.071,2622.3,2622.2,20.80374246]
[1749023230410,0.79,2622.3,2622.2,20.80374246]
[1749023230622,3.871,2622.3,2622.2,20.80374246]
[1749023231113,4.071,2622.3,2622.2,20.80374246]
[1749023232514,3.871,2622.3,2622.2,20.80374246]
[1749023233594,3.871,2622.3,2622.2,15.88004]
[1749023233916,4.071,2622.3,2622.2,14.681808]
[1749023234678,8.731,2622.3,2622.2,14.681808]
[1749023235232,8.731,2622.3,2622.2,13.007088]
[1749023235431,8.731,2622.3,2622.2,11.798311]
[1749023235635,9.8277,2622.3,2622.2,11.093891]
[1749023235809,1.0967,2622.2,2622.1,8.0]
[1749023236141,1.2967,2622.0,2621.9,8.0]
[1749023236307,4.3777,2622.0,2621.9,18.0]
[1749023240967,3.281,2622.0,2621.9,18.0]
[1749023241333,0.2,2622.0,2621.9,18.0]
[1749023241536,4.071,2622.0,2621.9,18.46907908]
[1749023241773,4.071,2622.0,2621.9,18.0]
[1749023242472,3.871,2622.0,2621.9,18.0]
[1749023242783,4.071,2622.0,2621.9,18.0]
[1749023242971,3.871,2622.0,2621.9,18.0]
[1749023245175,0.2,2622.2,2621.9,18.0]
[1749023245368,0.79,2622.0,2621.9,18.0]
[1749023245683,0.79,2622.0,2621.9,20.80374246]
[1749023248977,0.2,2622.2,2621.9,20.80374246]
[1749023249180,0.2,2622.2,2622.1,20.80374246]
[1749023249379,4.071,2622.2,2622.1,20.80374246]
[1749023254128,5.1253,2622.2,2622.1,18.0]
[1749023257584,5.1253,2622.2,2622.1,20.80374246]
[1749023260316,1.2543,2622.2,2622.1,20.80374246]
[1749023260599,5.1253,2622.2,2622.1,20.80374246]
[1749023260756,5.1253,2622.2,2622.1,15.91116546]
[1749023260955,5.1253,2622.2,2622.1,14.35851146]
[1749023263709,9.7863,2622.2,2622.1,11.554769]
[1749023264018,10.34733,2622.2,2622.1,8.0]
[1749023266217,0.2,2621.7,2621.6,20.80374246]
[1749023266528,4.2965,2621.7,2621.6,10.0]
[1749023266732,0.2,2621.3,2621.2,12.80374246]
[1749023267025,4.071,2621.3,2621.2,12.80374246]
[1749023267230,4.071,2621.3,2621.2,20.80374246]
[1749023269738,8.732,2621.3,2621.2,20.80374246]
[1749023272590,4.861,2621.3,2621.2,20.80374246]
[1749023272794,8.732,2621.3,2621.2,20.80374246]
[1749023272993,4.861,2621.3,2621.2,20.80374246]
[1749023273196,8.732,2621.3,2621.2,20.80374246]
[1749023274104,4.861,2621.3,2621.2,20.80374246]
[1749023274409,8.732,2621.3,2621.2,20.80374246]
[1749023274932,4.861,2621.3,2621.2,20.80374246]
[1749023275131,8.733,2621.3,2621.2,20.80374246]
[1749023276545,4.861,2621.3,2621.2,20.80374246]
[1749023276751,8.732,2621.3,2621.2,20.80374246]
[1749023276964,4.861,2621.3,2621.2,20.80374246]
[1749023277111,8.732,2621.3,2621.2,20.80374246]
[1749023280820,8.733,2621.3,2621.2,20.80374246]
[1749023284742,5.651,2621.3,2621.2,20.80374246]
[1749023285041,8.733,2621.3,2621.2,20.80374246]
[1749023291161,4.661,2621.3,2621.2,23.60748492]
[1749023291365,5.451,2621.3,2621.2,24.56148268]
[1749023291535,0.2,2621.9,2621.3,18.0]
[1749023291746,0.79,2621.8,2621.7,8.0]
[1749023291951,3.872,2621.8,2621.7,18.0]
[1749023292965,3.872,2621.8,2621.7,20.80374246]
[1749023301899,1.2225,2621.9,2621.7,20.80374246]
[1749023302203,0.2,2621.9,2621.8,18.0]
[1749023302383,4.071,2621.9,2621.8,18.0]
[1749023303665,4.071,2621.9,2621.8,16.821426]
[1749023304873,0.2,2621.9,2621.8,16.821426]
[1749023305073,4.071,2621.9,2621.8,16.821426]
[1749023306629,0.2,2621.9,2621.8,16.821426]
[1749023306778,4.662,2622.1,2621.8,16.821426]
[1749023307108,4.071,2622.0,2621.9,18.0]
[1749023307405,4.662,2622.1,2622.0,18.0]
[1749023307605,8.533,2622.1,2622.0,18.0]
[1749023308112,5.652,2622.1,2622.0,18.0]
[1749023308409,8.533,2622.1,2622.0,20.80374246]
[1749023308594,8.733,2622.1,2622.0,20.80374246]
[1749023314232,8.533,2622.1,2622.0,20.80374246]
[1749023314383,8.733,2622.1,2622.0,20.80374246]
[1749023315181,8.533,2622.1,2622.0,20.80374246]
[1749023315377,8.733,2622.1,2622.0,20.80374246]
[1749023315832,8.533,2622.1,2622.0,20.80374246]
[1749023316233,8.733,2622.1,2622.0,20.80374246]
[1749023317130,8.732,2622.1,2622.0,20.80374246]
[1749023323134,4.07,2622.1,2622.0,20.80374246]
[1749023325647,3.87,2622.1,2622.0,20.80374246]
[1749023325806,0.2,2622.3,2622.2,18.0]
[1749023326003,0.99,2622.3,2622.2,20.80374246]
[1749023326392,4.07,2622.3,2622.2,20.80374246]
[1749023327056,0.2,2622.3,2622.2,20.80374246]
[1749023327349,4.66,2622.5,2622.4,18.0]
[1749023327498,8.73,2622.5,2622.4,23.60748492]
[1749023327842,8.53,2622.5,2622.4,23.60748492]
[1749023328033,8.73,2622.5,2622.4,23.60748492]
[1749023328626,8.73,2622.5,2622.4,20.80374246]
[1749023365388,3.887,2623.9,2623.8,18.0]
[1749023427900,3.076,2624.5,2624.4,20.80374246]
[1749023428099,0.788,2624.6,2624.5,18.0]
[1749023428299,3.863,2624.6,2624.5,18.0]
[1749023428837,0.02,2624.9,2624.7,10.0]
[1749023429025,3.863,2624.8,2624.7,18.0]
[1749023429194,3.863,2624.8,2624.7,20.80374246]
[1749023437939,0.02,2624.9,2624.8,8.0]
[1749023438239,3.883,2624.9,2624.8,18.0]
[1749023444446,0.808,2624.9,2624.8,18.0]
[1749023444751,3.883,2624.9,2624.8,18.0]
[1749023447861,0.808,2624.9,2624.8,18.0]
[1749023448067,3.883,2624.9,2624.8,18.0]
[1749023449171,3.883,2624.9,2624.8,22.07881106]
[1749023449968,0.808,2624.9,2624.8,22.07881106]
[1749023450173,3.883,2624.9,2624.8,22.07881106]
[1749023451779,3.88196481,2624.9,2624.8,22.07881106]
[1749023455289,0.80696481,2624.9,2624.8,22.07881106]
[1749023455780,3.88096481,2624.9,2624.8,22.07881106]
[1749023456182,0.80696481,2624.9,2624.8,22.07881106]
[1749023456488,3.88096481,2624.9,2624.8,22.07881106]
[1749023458187,0.788,2625.0,2624.8,22.07881106]
[1749023458388,0.788,2625.0,2624.9,18.0]
[1749023458688,4.675,2625.9,2625.1,18.0]
[1749023458689,0.788,2625.2,2625.1,18.0]
[1749023458876,3.074,2625.2,2625.1,22.07881106]
[1749023459055,3.074,2625.2,2625.1,20.03940553]
[1749023461181,3.074,2625.2,2625.1,20.8032406]
[1749023464421,0.955,2625.8,2625.4,8.0]
[1749023464627,4.817,2625.8,2625.6,8.0]
[1749023464783,4.817,2625.8,2625.7,12.8032406]
[1749023465422,4.817,2625.8,2625.7,23.6064812]
[1749023465423,1.743,2625.8,2625.7,23.6064812]
[1749023465717,4.817,2625.8,2625.7,23.6064812]
[1749023465920,0.02,2625.9,2625.8,8.0]
[1749023466127,0.9464,2626.1,2625.8,8.0]
[1749023466338,5.6014,2626.3,2626.2,8.0]
[1749023466484,5.6014,2626.3,2626.2,18.0]
[1749023466485,9.4634,2626.3,2626.2,18.0]
[1749023466680,9.4634,2626.3,2626.2,20.8032406]
[1749023467698,8.517,2626.3,2626.2,20.8032406]
[1749023468272,5.443,2626.3,2626.2,20.8032406]
[1749023468540,8.517,2626.3,2626.2,20.8032406]
[1749023469250,0.788,2626.6,2626.4,8.0]
[1749023469445,0.788,2626.6,2626.5,20.8032406]
[1749023469591,3.862,2626.6,2626.5,20.8032406]
[1749023470423,0.9357,2626.7,2626.6,18.0]
[1749023470622,4.7957,2626.7,2626.6,18.0]
[1749023471802,1.7227,2626.7,2626.6,18.0]
[1749023472040,4.7957,2626.7,2626.6,18.0]
[1749023473210,1.7227,2626.7,2626.6,18.0]
[1749023473414,4.7957,2626.7,2626.6,18.0]
[1749023476349,4.7957,2626.7,2626.6,20.8032406]
[1749023477341,4.7957,2626.7,2626.6,20.8032406]
[1749023478507,4.7957,2626.7,2626.6,18.0]
[1749023478706,5.30857,2626.7,2626.6,18.0]
[1749023478943,4.827,2626.7,2626.6,20.8032406]
[1749023481646,0.967,2626.7,2626.6,20.8032406]
[1749023481969,4.826,2626.7,2626.6,18.0]
[1749023482253,4.826,2626.7,2626.6,10.0]
[1749023482455,0.9934,2626.6,2626.2,10.0]
[1749023482611,0.9934,2626.6,2624.6,2.8032406]
[1749023482612,0.9934,2626.4,2625.9,5.95428]
[1749023482810,0.9934,2626.2,2626.0,10.0]
[1749023483047,4.0664,2626.1,2626.0,8.0]
[1749023483349,0.9934,2626.0,2625.9,10.0]
[1749023483555,0.9934,2626.0,2625.9,10.28595]
[1749023483737,0.9934,2626.0,2624.9,10.0]
[1749023483938,0.9525,2625.8,2625.5,8.0]
[1749023484155,0.9525,2625.8,2625.7,13.406999]
[1749023484354,4.8125,2625.8,2625.7,13.406999]
[1749023484554,4.8125,2625.8,2625.4,2.8032406]
[1749023484555,0.989,2625.7,2625.2,2.8032406]
[1749023484864,0.989,2625.5,2625.4,3.275566]
[1749023485026,0.989,2625.4,2625.1,20.0]
[1749023485230,0.989,2625.4,2625.3,3.875128]